[Event "Late-Titled-Tuesday-Blitz-July-09-2024"]
[Site "Chess.com"]
[Date "2024.07.09"]
[Round "3"]
[White "AlexTruskavetsky"]
[Black "ural58"]
[Result "1-0"]
[WhiteElo "2687"]
[BlackElo "2456"]
[TimeControl "180+1"]
[EndTime "14:23:45 PDT"]
[Termination "AlexTruskavetsky won by resignation"]

1. d4 {[%clk 0:03:00.9]} 1... d5 {[%clk 0:02:50.1]} 2. c4 {[%clk 0:02:58.1]}
2... e5 {[%clk 0:02:32.6]} 3. dxe5 {[%clk 0:02:50.4]} 3... d4 {[%clk 0:02:26.9]}
4. Nf3 {[%clk 0:02:49.9]} 4... Nc6 {[%clk 0:02:26.2]} 5. a3 {[%clk 0:02:49]}
5... g6 {[%clk 0:02:25.7]} 6. b4 {[%clk 0:02:37.7]} 6... Bg7 {[%clk 0:02:24.9]}
7. Bb2 {[%clk 0:02:37.3]} 7... Nh6 {[%clk 0:02:24.7]} 8. Nbd2 {[%clk 0:02:27.2]}
8... Nf5 {[%clk 0:02:17.7]} 9. g3 {[%clk 0:02:25.2]} 9... Nxe5 {[%clk
0:02:16.8]} 10. Nxe5 {[%clk 0:02:24.3]} 10... Bxe5 {[%clk 0:02:17.7]} 11. Bg2
{[%clk 0:02:24.1]} 11... O-O {[%clk 0:02:16.1]} 12. O-O {[%clk 0:02:23.8]} 12...
c6 {[%clk 0:02:11]} 13. Nf3 {[%clk 0:02:23.1]} 13... Bg7 {[%clk 0:02:10.2]} 14.
Qd3 {[%clk 0:02:22.6]} 14... a5 {[%clk 0:02:04]} 15. Rfd1 {[%clk 0:02:21.2]}
15... axb4 {[%clk 0:02:01.6]} 16. axb4 {[%clk 0:02:19]} 16... Re8 {[%clk
0:01:57.5]} 17. Rxa8 {[%clk 0:02:18.1]} 1-0

[Event "Late-Titled-Tuesday-Blitz-July-09-2024"]
[Site "Chess.com"]
[Date "2024.07.09"]
[Round "3"]
[White "Franmu14"]
[Black "David_George21"]
[Result "0-1"]
[WhiteElo "2695"]
[BlackElo "2477"]
[TimeControl "180+1"]
[EndTime "14:24:11 PDT"]
[Termination "David_George21 won by resignation"]

1. e4 {[%clk 0:03:00.7]} 1... c5 {[%clk 0:03:00]} 2. Nc3 {[%clk 0:03:01.5]} 2...
g6 {[%clk 0:02:58.3]} 3. d4 {[%clk 0:03:00.8]} 3... cxd4 {[%clk 0:02:58.8]} 4.
Qxd4 {[%clk 0:03:01.6]} 4... Nf6 {[%clk 0:02:59.2]} 5. Nf3 {[%clk 0:02:59.7]}
5... Nc6 {[%clk 0:02:59.3]} 6. Qa4 {[%clk 0:02:59.3]} 6... Bg7 {[%clk
0:02:58.6]} 7. e5 {[%clk 0:02:57.9]} 7... Ng8 {[%clk 0:02:56.6]} 8. Bf4 {[%clk
0:02:57.3]} 8... Qb6 {[%clk 0:02:50.2]} 9. O-O-O {[%clk 0:02:52.8]} 9... Qxf2
{[%clk 0:02:49.8]} 10. Bc4 {[%clk 0:02:50.2]} 10... Qxg2 {[%clk 0:02:40.1]} 11.
Rhf1 {[%clk 0:02:49.4]} 11... Nh6 {[%clk 0:02:17.6]} 12. Ne4 {[%clk 0:01:58.1]}
12... O-O {[%clk 0:02:12.9]} 13. Neg5 {[%clk 0:01:55]} 13... Qg4 {[%clk
0:02:02.4]} 14. h3 {[%clk 0:01:51.6]} 14... Qxf4+ {[%clk 0:02:00.9]} 15. Kb1
{[%clk 0:01:50.8]} 15... Qe3 {[%clk 0:01:56.4]} 16. Rde1 {[%clk 0:01:48.5]}
16... Qb6 {[%clk 0:01:55.9]} 0-1

[Event "Late-Titled-Tuesday-Blitz-July-09-2024"]
[Site "Chess.com"]
[Date "2024.07.09"]
[Round "3"]
[White "Narek_Ghimoyan"]
[Black "bubeliang"]
[Result "1-0"]
[WhiteElo "2502"]
[BlackElo "2805"]
[TimeControl "180+1"]
[EndTime "14:24:16 PDT"]
[Termination "Narek_Ghimoyan won by resignation"]

1. e4 {[%clk 0:03:00.5]} 1... c6 {[%clk 0:02:56.9]} 2. d4 {[%clk 0:03:00.1]}
2... d5 {[%clk 0:02:57.8]} 3. Nc3 {[%clk 0:03:00.5]} 3... dxe4 {[%clk
0:02:57.9]} 4. Nxe4 {[%clk 0:03:01.4]} 4... Nf6 {[%clk 0:02:58.6]} 5. Nxf6+
{[%clk 0:03:01.5]} 5... exf6 {[%clk 0:02:59.5]} 6. c3 {[%clk 0:03:01.9]} 6...
Bd6 {[%clk 0:02:59.4]} 7. Bd3 {[%clk 0:03:02.2]} 7... O-O {[%clk 0:03:00.3]} 8.
Qc2 {[%clk 0:03:02.6]} 8... Re8+ {[%clk 0:03:01.1]} 9. Ne2 {[%clk 0:03:03]} 9...
h5 {[%clk 0:03:00.5]} 10. O-O {[%clk 0:03:02.7]} 10... h4 {[%clk 0:02:56.1]} 11.
h3 {[%clk 0:03:03]} 11... Nd7 {[%clk 0:02:51]} 12. Bd2 {[%clk 0:03:03]} 12...
Nf8 {[%clk 0:02:50.3]} 13. Rae1 {[%clk 0:03:02.8]} 13... Qc7 {[%clk 0:02:49.3]}
14. f4 {[%clk 0:03:01.7]} 14... Bd7 {[%clk 0:02:46.9]} 15. f5 {[%clk 0:03:01.9]}
15... Re7 {[%clk 0:02:45.3]} 16. c4 {[%clk 0:02:49.8]} 16... Rae8 {[%clk
0:02:44.5]} 17. c5 {[%clk 0:02:46.7]} 17... Bh2+ {[%clk 0:02:43.5]} 18. Kh1
{[%clk 0:02:46.9]} 18... Nh7 {[%clk 0:02:43.2]} 19. Qc1 {[%clk 0:02:40.9]} 19...
Bg3 {[%clk 0:02:36.6]} 20. Nxg3 {[%clk 0:02:11]} 20... Qxg3 {[%clk 0:02:37.5]}
21. Bc4 {[%clk 0:02:07.3]} 21... Ng5 {[%clk 0:02:32.5]} 22. Rxe7 {[%clk
0:02:00.7]} 22... Rxe7 {[%clk 0:02:31]} 23. Bf4 {[%clk 0:02:00.8]} 23... Ne4
{[%clk 0:02:07.5]} 24. Bxg3 {[%clk 0:01:59.9]} 24... Nxg3+ {[%clk 0:02:08.4]}
25. Kh2 {[%clk 0:01:59.6]} 25... Nxf1+ {[%clk 0:02:08.1]} 26. Qxf1 {[%clk
0:02:00.5]} 26... Re4 {[%clk 0:02:08]} 27. Qf2 {[%clk 0:01:58.5]} 27... Kf8
{[%clk 0:02:07.5]} 28. Bd3 {[%clk 0:01:58.3]} 1-0

[Event "Late-Titled-Tuesday-Blitz-July-09-2024"]
[Site "Chess.com"]
[Date "2024.07.09"]
[Round "3"]
[White "Bilan_Danila"]
[Black "KebabJangles"]
[Result "1-0"]
[WhiteElo "2593"]
[BlackElo "2366"]
[TimeControl "180+1"]
[EndTime "14:24:58 PDT"]
[Termination "Bilan_Danila won by resignation"]

1. d4 {[%clk 0:03:00.9]} 1... Nf6 {[%clk 0:02:57.5]} 2. Nf3 {[%clk 0:03:00]}
2... g6 {[%clk 0:02:56.8]} 3. Bg5 {[%clk 0:02:58.8]} 3... Bg7 {[%clk 0:02:56]}
4. c3 {[%clk 0:02:59.4]} 4... O-O {[%clk 0:02:55.5]} 5. Nbd2 {[%clk 0:03:00]}
5... d6 {[%clk 0:02:48.4]} 6. e4 {[%clk 0:02:57]} 6... h6 {[%clk 0:02:40.3]} 7.
Bh4 {[%clk 0:02:56.8]} 7... g5 {[%clk 0:02:40.3]} 8. Bg3 {[%clk 0:02:57]} 8...
Nh5 {[%clk 0:02:39.5]} 9. Bc4 {[%clk 0:02:46.5]} 9... Nxg3 {[%clk 0:02:28.7]}
10. hxg3 {[%clk 0:02:45.3]} 10... e6 {[%clk 0:02:28.3]} 11. e5 {[%clk
0:02:39.6]} 11... d5 {[%clk 0:02:20.2]} 12. Bb3 {[%clk 0:02:36.4]} 12... c5
{[%clk 0:01:54.1]} 13. Nh2 {[%clk 0:02:26.2]} 13... Nc6 {[%clk 0:01:35.4]} 14.
Ndf3 {[%clk 0:02:20.7]} 14... f5 {[%clk 0:01:34.9]} 15. exf6 {[%clk 0:02:12.8]}
15... Qxf6 {[%clk 0:01:22.3]} 16. Ng4 {[%clk 0:02:11.7]} 16... Qg6 {[%clk
0:01:20.1]} 17. Bc2 {[%clk 0:02:09.2]} 17... Qf7 {[%clk 0:01:20]} 18. Rxh6
{[%clk 0:01:56]} 18... Bxh6 {[%clk 0:01:20.9]} 19. Nxh6+ {[%clk 0:01:54.8]} 1-0

[Event "Late-Titled-Tuesday-Blitz-July-09-2024"]
[Site "Chess.com"]
[Date "2024.07.09"]
[Round "3"]
[White "simaopdias"]
[Black "Trovita84"]
[Result "0-1"]
[WhiteElo "2203"]
[BlackElo "2395"]
[TimeControl "180+1"]
[EndTime "14:25:25 PDT"]
[Termination "Trovita84 won by resignation"]

1. e4 {[%clk 0:03:00]} 1... c5 {[%clk 0:02:58.7]} 2. Nf3 {[%clk 0:03:00.3]} 2...
d6 {[%clk 0:02:58.1]} 3. d4 {[%clk 0:03:01.2]} 3... cxd4 {[%clk 0:02:58.2]} 4.
Nxd4 {[%clk 0:03:02.1]} 4... Nf6 {[%clk 0:02:53.9]} 5. Nc3 {[%clk 0:03:02.6]}
5... a6 {[%clk 0:02:54.3]} 6. Be2 {[%clk 0:03:01.2]} 6... e6 {[%clk 0:02:52.1]}
7. Be3 {[%clk 0:03:00.6]} 7... Be7 {[%clk 0:02:52.4]} 8. O-O {[%clk 0:02:55.3]}
8... O-O {[%clk 0:02:52.2]} 9. a4 {[%clk 0:02:54.5]} 9... e5 {[%clk 0:02:48]}
10. Nb3 {[%clk 0:02:54.3]} 10... Be6 {[%clk 0:02:47.3]} 11. Nd5 {[%clk
0:02:47.3]} 11... Nxd5 {[%clk 0:02:43.3]} 12. exd5 {[%clk 0:02:44]} 12... Bf5
{[%clk 0:02:42.8]} 13. c4 {[%clk 0:02:42.7]} 13... Nd7 {[%clk 0:02:40.6]} 14.
Bd3 {[%clk 0:02:38.9]} 14... Bxd3 {[%clk 0:02:38.9]} 15. Qxd3 {[%clk 0:02:38.8]}
15... f5 {[%clk 0:02:39.8]} 16. f3 {[%clk 0:02:33.5]} 16... Rc8 {[%clk
0:02:37.5]} 17. Rfc1 {[%clk 0:02:28]} 17... Bg5 {[%clk 0:02:35.5]} 18. Qd2
{[%clk 0:02:25.2]} 18... Bxe3+ {[%clk 0:02:33.7]} 19. Qxe3 {[%clk 0:02:25.4]}
19... Qb6 {[%clk 0:02:28.8]} 20. Qxb6 {[%clk 0:02:21.7]} 20... Nxb6 {[%clk
0:02:29.7]} 21. Nd2 {[%clk 0:02:22.3]} 21... a5 {[%clk 0:02:28.2]} 22. b3 {[%clk
0:02:21.5]} 22... Nd7 {[%clk 0:02:24.3]} 23. Rab1 {[%clk 0:02:17]} 23... Nc5
{[%clk 0:02:21.9]} 24. Rc3 {[%clk 0:02:11.8]} 24... e4 {[%clk 0:02:16.8]} 25.
Re3 {[%clk 0:02:06.9]} 25... f4 {[%clk 0:02:15.2]} 26. Re2 {[%clk 0:02:04.8]}
26... e3 {[%clk 0:02:14.4]} 27. Nf1 {[%clk 0:01:56.2]} 27... Ra8 {[%clk
0:01:52.5]} 28. h3 {[%clk 0:01:49.2]} 28... Ra6 {[%clk 0:01:50.9]} 29. Nh2
{[%clk 0:01:47.5]} 29... Rb6 {[%clk 0:01:49.6]} 30. Reb2 {[%clk 0:01:47.2]}
30... Re8 {[%clk 0:01:42.6]} 31. Kf1 {[%clk 0:01:41.9]} 31... e2+ {[%clk
0:01:42.1]} 32. Ke1 {[%clk 0:01:31.7]} 32... Nd3+ {[%clk 0:01:41.4]} 0-1

[Event "Late-Titled-Tuesday-Blitz-July-09-2024"]
[Site "Chess.com"]
[Date "2024.07.09"]
[Round "3"]
[White "dolynachess"]
[Black "Millerkallpa"]
[Result "0-1"]
[WhiteElo "2529"]
[BlackElo "2258"]
[TimeControl "180+1"]
[EndTime "14:25:34 PDT"]
[Termination "Millerkallpa won by resignation"]

1. d4 {[%clk 0:03:00.9]} 1... Nf6 {[%clk 0:02:59.4]} 2. c4 {[%clk 0:03:01.8]}
2... c5 {[%clk 0:02:58.1]} 3. Nf3 {[%clk 0:03:01.4]} 3... g6 {[%clk 0:02:56.9]}
4. Nc3 {[%clk 0:03:00.3]} 4... Bg7 {[%clk 0:02:56.5]} 5. g3 {[%clk 0:03:00.5]}
5... O-O {[%clk 0:02:56.3]} 6. Bg2 {[%clk 0:03:00.8]} 6... cxd4 {[%clk
0:02:53.5]} 7. Nxd4 {[%clk 0:03:01.7]} 7... Nc6 {[%clk 0:02:52.7]} 8. O-O {[%clk
0:03:01.9]} 8... d6 {[%clk 0:02:51.2]} 9. Nxc6 {[%clk 0:03:00.8]} 9... bxc6
{[%clk 0:02:50.8]} 10. Bxc6 {[%clk 0:03:00.2]} 10... Rb8 {[%clk 0:02:50.4]} 11.
Bg2 {[%clk 0:02:56.8]} 11... Bb7 {[%clk 0:02:49.1]} 12. Qc2 {[%clk 0:02:49.1]}
12... Bxg2 {[%clk 0:02:48.1]} 13. Kxg2 {[%clk 0:02:49.5]} 13... Qc7 {[%clk
0:02:48.5]} 14. Be3 {[%clk 0:02:41.1]} 14... Ng4 {[%clk 0:02:30.1]} 15. Nd5
{[%clk 0:02:17.5]} 15... Qb7 {[%clk 0:02:26.3]} 16. f3 {[%clk 0:01:37.7]} 16...
Qxd5 {[%clk 0:02:21.2]} 17. Bxa7 {[%clk 0:01:25.1]} 17... Qa8 {[%clk 0:02:17.7]}
18. Bg1 {[%clk 0:01:16.6]} 18... Rxb2 {[%clk 0:02:13.6]} 19. Qd3 {[%clk
0:01:15.5]} 19... Ne5 {[%clk 0:02:10.5]} 20. Qd1 {[%clk 0:01:08.5]} 20... Nxc4
{[%clk 0:02:08.4]} 21. a4 {[%clk 0:01:08.7]} 21... Rd2 {[%clk 0:01:52.8]} 22.
Qc1 {[%clk 0:01:04.5]} 22... Bxa1 {[%clk 0:01:49.8]} 23. Qxa1 {[%clk 0:00:59.7]}
23... Rxe2+ {[%clk 0:01:47.8]} 24. Kh1 {[%clk 0:00:59.8]} 24... Nd2 {[%clk
0:01:44.5]} 0-1

[Event "Late-Titled-Tuesday-Blitz-July-09-2024"]
[Site "Chess.com"]
[Date "2024.07.09"]
[Round "3"]
[White "stollenmonster"]
[Black "Crazy_girl99"]
[Result "0-1"]
[WhiteElo "2877"]
[BlackElo "2686"]
[TimeControl "180+1"]
[EndTime "14:25:36 PDT"]
[Termination "Crazy_girl99 won by resignation"]

1. e4 {[%clk 0:03:00.9]} 1... e5 {[%clk 0:02:56.9]} 2. Nc3 {[%clk 0:03:00.4]}
2... Nc6 {[%clk 0:02:56.4]} 3. g3 {[%clk 0:03:00.1]} 3... Bc5 {[%clk 0:02:56]}
4. Bg2 {[%clk 0:03:00.5]} 4... Nf6 {[%clk 0:02:56]} 5. h3 {[%clk 0:03:00.6]}
5... d6 {[%clk 0:02:56.4]} 6. d3 {[%clk 0:03:01.1]} 6... a6 {[%clk 0:02:54.8]}
7. Nge2 {[%clk 0:03:01.5]} 7... Be6 {[%clk 0:02:46.8]} 8. Nd5 {[%clk 0:03:00.6]}
8... Qd7 {[%clk 0:02:45.7]} 9. c3 {[%clk 0:02:59.1]} 9... Ba7 {[%clk 0:02:43.1]}
10. d4 {[%clk 0:02:53.4]} 10... exd4 {[%clk 0:02:40.8]} 11. cxd4 {[%clk
0:02:52.9]} 11... O-O-O {[%clk 0:02:36.2]} 12. Nxf6 {[%clk 0:02:51.6]} 12...
gxf6 {[%clk 0:02:34.7]} 13. d5 {[%clk 0:02:52.5]} 13... Ne5 {[%clk 0:02:27.7]}
14. dxe6 {[%clk 0:02:50.8]} 14... fxe6 {[%clk 0:02:28.2]} 15. O-O {[%clk
0:02:50.1]} 15... Rdg8 {[%clk 0:02:27.1]} 16. Nf4 {[%clk 0:02:48.3]} 16... Rxg3
{[%clk 0:02:25.5]} 17. Kh2 {[%clk 0:02:45.3]} 17... Rg7 {[%clk 0:02:23.2]} 18.
Nh5 {[%clk 0:02:41.6]} 18... Rg6 {[%clk 0:02:19.3]} 19. Bf4 {[%clk 0:02:36.5]}
19... Rhg8 {[%clk 0:02:17.9]} 20. Bg3 {[%clk 0:02:36.9]} 20... Qf7 {[%clk
0:02:10.4]} 21. Qe2 {[%clk 0:02:10.7]} 21... Rh6 {[%clk 0:02:05.2]} 22. f4
{[%clk 0:01:49.5]} 22... Nc6 {[%clk 0:02:02.4]} 23. Nxf6 {[%clk 0:01:40.3]}
23... Qxf6 {[%clk 0:02:01.7]} 24. e5 {[%clk 0:01:32]} 24... Qg7 {[%clk
0:01:58.7]} 25. Qd3 {[%clk 0:01:30.9]} 25... Rg6 {[%clk 0:01:53.9]} 26. Rf3
{[%clk 0:01:28.3]} 26... Nd4 {[%clk 0:01:49.7]} 27. Raf1 {[%clk 0:01:21.1]}
27... Nf5 {[%clk 0:01:43.4]} 28. exd6 {[%clk 0:01:19.3]} 28... Nxg3 {[%clk
0:01:38.2]} 29. Rxg3 {[%clk 0:01:12.6]} 29... Rxg3 {[%clk 0:01:37.9]} 30. Bxb7+
{[%clk 0:01:13.3]} 30... Kxb7 {[%clk 0:01:35.1]} 31. Qe4+ {[%clk 0:01:13.9]}
31... c6 {[%clk 0:01:33.1]} 0-1

[Event "Late-Titled-Tuesday-Blitz-July-09-2024"]
[Site "Chess.com"]
[Date "2024.07.09"]
[Round "3"]
[White "AlleyOoper"]
[Black "MikaelyanArman"]
[Result "0-1"]
[WhiteElo "2562"]
[BlackElo "2897"]
[TimeControl "180+1"]
[EndTime "14:25:47 PDT"]
[Termination "MikaelyanArman won by resignation"]

1. d4 {[%clk 0:02:58.9]} 1... c6 {[%clk 0:03:00.2]} 2. e4 {[%clk 0:02:54.9]}
2... d6 {[%clk 0:03:00.7]} 3. Nc3 {[%clk 0:02:55]} 3... a5 {[%clk 0:02:57.8]} 4.
f4 {[%clk 0:02:48.8]} 4... g6 {[%clk 0:02:53.1]} 5. Nf3 {[%clk 0:02:48.4]} 5...
Bg7 {[%clk 0:02:52.3]} 6. Bd3 {[%clk 0:02:48]} 6... Na6 {[%clk 0:02:48.6]} 7. a3
{[%clk 0:02:47]} 7... Nc7 {[%clk 0:02:43.9]} 8. h3 {[%clk 0:02:44.8]} 8... Nf6
{[%clk 0:02:43]} 9. O-O {[%clk 0:02:41.6]} 9... O-O {[%clk 0:02:43.1]} 10. e5
{[%clk 0:02:38]} 10... Nd7 {[%clk 0:02:43]} 11. Ne4 {[%clk 0:02:36.2]} 11... c5
{[%clk 0:02:40.3]} 12. exd6 {[%clk 0:02:33.4]} 12... exd6 {[%clk 0:02:41.2]} 13.
Nxd6 {[%clk 0:02:29]} 13... cxd4 {[%clk 0:02:41.8]} 14. Nxc8 {[%clk 0:02:17.2]}
14... Rxc8 {[%clk 0:02:42.7]} 15. Bd2 {[%clk 0:02:13.8]} 15... Nd5 {[%clk
0:02:43.1]} 16. Re1 {[%clk 0:01:57.6]} 16... Qb6 {[%clk 0:02:41.8]} 17. b3
{[%clk 0:01:43]} 17... Ne3 {[%clk 0:02:41.3]} 18. Qb1 {[%clk 0:01:33.7]} 18...
Nc5 {[%clk 0:02:40.1]} 19. Bc4 {[%clk 0:01:29.4]} 19... Ne4 {[%clk 0:02:33.2]}
20. Bxe3 {[%clk 0:01:17.4]} 20... dxe3 {[%clk 0:02:34.1]} 21. Ne5 {[%clk
0:01:06.2]} 21... e2+ {[%clk 0:02:30.1]} 22. Kh2 {[%clk 0:01:03.4]} 22... Qe3
{[%clk 0:02:30.3]} 23. Nd3 {[%clk 0:00:59.7]} 23... Rfd8 {[%clk 0:02:15.1]} 24.
Qc1 {[%clk 0:00:47.3]} 24... Qg3+ {[%clk 0:02:13.8]} 25. Kh1 {[%clk 0:00:46.2]}
25... Rxd3 {[%clk 0:02:05.6]} 26. Bxd3 {[%clk 0:00:38.8]} 26... Nf2+ {[%clk
0:02:04.4]} 27. Kg1 {[%clk 0:00:38.1]} 27... Nxh3+ {[%clk 0:02:04.4]} 28. Kh1
{[%clk 0:00:37.7]} 28... Nf2+ {[%clk 0:02:04.6]} 29. Kg1 {[%clk 0:00:38.3]}
29... Nxd3 {[%clk 0:02:01.3]} 30. Qd2 {[%clk 0:00:36.8]} 30... Bd4+ {[%clk
0:02:00.5]} 0-1

[Event "Late-Titled-Tuesday-Blitz-July-09-2024"]
[Site "Chess.com"]
[Date "2024.07.09"]
[Round "3"]
[White "MyDream003"]
[Black "schachlana"]
[Result "0-1"]
[WhiteElo "2702"]
[BlackElo "2334"]
[TimeControl "180+1"]
[EndTime "14:25:54 PDT"]
[Termination "schachlana won on time"]

1. h3 {[%clk 0:02:47.4]} 1... g6 {[%clk 0:02:54.6]} 2. Rh2 {[%clk 0:02:48.3]}
2... Bg7 {[%clk 0:02:54.8]} 3. g3 {[%clk 0:02:49.2]} 3... d5 {[%clk 0:02:55.3]}
4. Rg2 {[%clk 0:02:49]} 4... c5 {[%clk 0:02:56]} 5. g4 {[%clk 0:02:49.2]} 5...
Nc6 {[%clk 0:02:56.7]} 6. Rg3 {[%clk 0:02:49.5]} 6... e5 {[%clk 0:02:57.3]} 7.
d3 {[%clk 0:02:49.2]} 7... Nge7 {[%clk 0:02:57.3]} 8. Nd2 {[%clk 0:02:48.9]}
8... Be6 {[%clk 0:02:57.9]} 9. Ndf3 {[%clk 0:02:49]} 9... Qd7 {[%clk 0:02:57.3]}
10. Ng5 {[%clk 0:02:48.7]} 10... O-O-O {[%clk 0:02:56.4]} 11. Nxe6 {[%clk
0:02:48.6]} 11... Qxe6 {[%clk 0:02:57.3]} 12. Bg2 {[%clk 0:02:47.3]} 12... f5
{[%clk 0:02:55.2]} 13. c3 {[%clk 0:02:47.5]} 13... f4 {[%clk 0:02:54.6]} 14. Rf3
{[%clk 0:02:47.9]} 14... g5 {[%clk 0:02:51.4]} 15. h4 {[%clk 0:02:45.5]} 15...
e4 {[%clk 0:02:50.4]} 16. Rh3 {[%clk 0:02:44.2]} 16... Qxg4 {[%clk 0:02:46.6]}
17. Kf1 {[%clk 0:02:44.1]} 17... Kb8 {[%clk 0:02:37.4]} 18. a4 {[%clk
0:02:41.6]} 18... Ne5 {[%clk 0:02:35.3]} 19. a5 {[%clk 0:02:41.7]} 19... gxh4
{[%clk 0:02:33.2]} 20. a6 {[%clk 0:02:41.3]} 20... b6 {[%clk 0:02:32.9]} 21. Qa4
{[%clk 0:02:40.6]} 21... Rhg8 {[%clk 0:02:31.3]} 22. b4 {[%clk 0:02:38.3]} 22...
Bf6 {[%clk 0:02:30.3]} 23. Rh2 {[%clk 0:02:38.4]} 23... f3 {[%clk 0:02:26.5]}
24. exf3 {[%clk 0:02:35.8]} 24... exf3 {[%clk 0:02:25.8]} 25. Nxf3 {[%clk
0:02:33.3]} 25... Nxf3 {[%clk 0:02:22.9]} 26. Bh3 {[%clk 0:02:30.7]} 26... Nxh2+
{[%clk 0:02:20]} 0-1

[Event "Late-Titled-Tuesday-Blitz-July-09-2024"]
[Site "Chess.com"]
[Date "2024.07.09"]
[Round "3"]
[White "Masterisback04"]
[Black "ALRS-SPS"]
[Result "1-0"]
[WhiteElo "2109"]
[BlackElo "2363"]
[TimeControl "180+1"]
[EndTime "14:26:02 PDT"]
[Termination "Masterisback04 won on time"]

1. e4 {[%clk 0:03:00.9]} 1... c5 {[%clk 0:03:00]} 2. Nf3 {[%clk 0:03:00]} 2...
e6 {[%clk 0:02:59.8]} 3. c3 {[%clk 0:02:59.1]} 3... d5 {[%clk 0:02:56.7]} 4. Bd3
{[%clk 0:02:58.7]} 4... Nc6 {[%clk 0:02:53.4]} 5. O-O {[%clk 0:02:58.1]} 5...
Nf6 {[%clk 0:02:48.5]} 6. e5 {[%clk 0:02:55.9]} 6... Nd7 {[%clk 0:02:47.8]} 7.
Re1 {[%clk 0:02:55.8]} 7... Qc7 {[%clk 0:02:46.3]} 8. Qe2 {[%clk 0:02:54.7]}
8... b6 {[%clk 0:02:38.7]} 9. a3 {[%clk 0:02:45]} 9... Bb7 {[%clk 0:02:37.3]}
10. b4 {[%clk 0:02:39.8]} 10... O-O-O {[%clk 0:02:27.7]} 11. Ba6 {[%clk
0:02:29.6]} 11... Re8 {[%clk 0:02:04.9]} 12. Bxb7+ {[%clk 0:02:29]} 12... Kxb7
{[%clk 0:02:02.4]} 13. bxc5 {[%clk 0:02:16]} 13... Bxc5 {[%clk 0:01:51.1]} 14.
d4 {[%clk 0:01:59.2]} 14... Bf8 {[%clk 0:01:50.8]} 15. Nbd2 {[%clk 0:01:52.6]}
15... f6 {[%clk 0:01:46.8]} 16. exf6 {[%clk 0:01:47.5]} 1-0

[Event "Late-Titled-Tuesday-Blitz-July-09-2024"]
[Site "Chess.com"]
[Date "2024.07.09"]
[Round "3"]
[White "scandalgod"]
[Black "sammartin99"]
[Result "1-0"]
[WhiteElo "2644"]
[BlackElo "2423"]
[TimeControl "180+1"]
[EndTime "14:26:03 PDT"]
[Termination "scandalgod won by resignation"]

1. d4 {[%clk 0:03:00.9]} 1... d5 {[%clk 0:02:56.9]} 2. c4 {[%clk 0:03:00]} 2...
c6 {[%clk 0:02:56.8]} 3. Nf3 {[%clk 0:02:58.9]} 3... Nf6 {[%clk 0:02:57]} 4. Nc3
{[%clk 0:02:57.8]} 4... a6 {[%clk 0:02:56.2]} 5. e3 {[%clk 0:02:57.5]} 5... Bf5
{[%clk 0:02:55.3]} 6. cxd5 {[%clk 0:02:55]} 6... cxd5 {[%clk 0:02:55.2]} 7. Qb3
{[%clk 0:02:54.3]} 7... b5 {[%clk 0:02:54.8]} 8. a4 {[%clk 0:02:53.3]} 8... b4
{[%clk 0:02:53.1]} 9. Qxb4 {[%clk 0:02:52.3]} 9... Nc6 {[%clk 0:02:52.9]} 10.
Qc5 {[%clk 0:02:49.8]} 10... Na5 {[%clk 0:02:52.7]} 11. Bxa6 {[%clk 0:02:44.7]}
11... Rxa6 {[%clk 0:02:52.5]} 12. Qb5+ {[%clk 0:02:42.7]} 12... Rc6 {[%clk
0:02:52.3]} 13. Ne5 {[%clk 0:02:39.9]} 13... Bd7 {[%clk 0:02:51.8]} 14. Nxd7
{[%clk 0:02:01.6]} 14... Nxd7 {[%clk 0:02:52.7]} 15. Bd2 {[%clk 0:01:58.7]}
15... Rc8 {[%clk 0:02:18.3]} 16. Nxd5 {[%clk 0:01:38]} 16... Nc4 {[%clk
0:02:01.6]} 17. Rc1 {[%clk 0:01:36.4]} 17... Nxd2 {[%clk 0:01:52.1]} 18. Kxd2
{[%clk 0:01:34]} 18... e6 {[%clk 0:01:36.6]} 19. Rxc8 {[%clk 0:01:31]} 19...
Qxc8 {[%clk 0:01:37.5]} 20. Rc1 {[%clk 0:01:30.7]} 20... Qxc1+ {[%clk
0:01:23.1]} 21. Kxc1 {[%clk 0:01:30.2]} 21... exd5 {[%clk 0:01:23.8]} 22. Qxd5
{[%clk 0:01:24.4]} 22... Be7 {[%clk 0:01:21.6]} 23. a5 {[%clk 0:01:12.2]} 23...
Nf6 {[%clk 0:01:16.6]} 24. Qc6+ {[%clk 0:01:10.3]} 24... Kd8 {[%clk 0:00:59.3]}
25. a6 {[%clk 0:01:08.1]} 1-0

[Event "Late-Titled-Tuesday-Blitz-July-09-2024"]
[Site "Chess.com"]
[Date "2024.07.09"]
[Round "3"]
[White "GMG"]
[Black "noblerone"]
[Result "1-0"]
[WhiteElo "2786"]
[BlackElo "2490"]
[TimeControl "180+1"]
[EndTime "14:26:12 PDT"]
[Termination "GMG won by resignation"]

1. Nf3 {[%clk 0:02:57.8]} 1... d5 {[%clk 0:02:58]} 2. g3 {[%clk 0:02:57.5]} 2...
Nf6 {[%clk 0:02:58.2]} 3. Bg2 {[%clk 0:02:57.8]} 3... c6 {[%clk 0:02:50.8]} 4.
c4 {[%clk 0:02:56.9]} 4... Bf5 {[%clk 0:02:45.4]} 5. Qb3 {[%clk 0:02:52.7]} 5...
Qb6 {[%clk 0:02:44.6]} 6. d3 {[%clk 0:02:53.3]} 6... e6 {[%clk 0:02:42.9]} 7.
Be3 {[%clk 0:02:53.1]} 7... Qxb3 {[%clk 0:02:42.6]} 8. axb3 {[%clk 0:02:54]}
8... a6 {[%clk 0:02:43]} 9. Nc3 {[%clk 0:02:49]} 9... Nbd7 {[%clk 0:02:24.5]}
10. Nd4 {[%clk 0:02:44]} 10... Bg6 {[%clk 0:02:20]} 11. cxd5 {[%clk 0:02:44.5]}
11... exd5 {[%clk 0:02:17.8]} 12. Nc2 {[%clk 0:02:39.7]} 12... Bc5 {[%clk
0:02:15.1]} 13. Bd4 {[%clk 0:02:16.7]} 13... O-O {[%clk 0:02:10.7]} 14. b4
{[%clk 0:02:15.3]} 14... Bd6 {[%clk 0:01:54.8]} 15. Bh3 {[%clk 0:02:09.9]} 15...
Rfe8 {[%clk 0:01:53.5]} 16. O-O {[%clk 0:02:09.6]} 16... Bh5 {[%clk 0:01:44.5]}
17. Rfe1 {[%clk 0:02:09]} 17... Be5 {[%clk 0:01:30.2]} 18. Na4 {[%clk
0:01:59.2]} 18... Bd6 {[%clk 0:01:17.8]} 19. Kf1 {[%clk 0:01:55]} 19... Bg4
{[%clk 0:01:14.2]} 20. Bxg4 {[%clk 0:01:50.6]} 20... Nxg4 {[%clk 0:01:13.7]} 21.
h3 {[%clk 0:01:47.9]} 21... Ngf6 {[%clk 0:01:03.4]} 22. Nc5 {[%clk 0:01:46.8]}
22... Rab8 {[%clk 0:00:58.7]} 23. Kg2 {[%clk 0:01:43]} 23... h6 {[%clk
0:00:57.2]} 24. f4 {[%clk 0:01:41.2]} 24... Re7 {[%clk 0:00:51]} 25. Kf3 {[%clk
0:01:41.1]} 25... Rbe8 {[%clk 0:00:50.3]} 26. Nxb7 {[%clk 0:01:37.5]} 26... Bxb4
{[%clk 0:00:29.5]} 27. Nxb4 {[%clk 0:01:34.6]} 27... Rb8 {[%clk 0:00:30]} 28.
Nxc6 {[%clk 0:01:34.1]} 1-0